bitfinex-derivatives/quotes_ETHF0:USTF0_20251107
["timestamp","ask_amount","ask_price","bid_price","bid_amount"]
[1762529083795,0.492,3295.2,3295.1,0.496558]
[1762529084099,0.492,3295.2,3295.1,0.004548]
[1762529084294,0.49197,3295.4,3295.1,0.004548]
[1762529084499,0.00241046,3295.5,3295.1,0.004548]
[1762529084701,0.00241046,3295.5,3295.4,0.49197]
[1762529085202,0.49436046,3295.5,3295.4,0.49197]
[1762529085605,0.00241046,3295.5,3295.4,0.49197]
[1762529086101,0.00241046,3295.5,3295.1,0.004548]
[1762529086295,0.00241046,3295.5,3295.4,0.49197]
[1762529086502,9.79887247,3297.4,3295.2,4.0671]
[1762529086503,0.49186,3296.2,3296.1,0.49186]
[1762529086698,0.49191,3295.8,3295.7,3.2078]
[1762529086897,0.49192,3295.7,3295.4,0.49196]
[1762529087097,0.49192,3295.7,3295.3,3.2078]
[1762529087098,0.8184,3296.0,3295.3,3.2078]
[1762529087298,3.2078,3296.1,3295.3,3.2078]
[1762529087599,3.2078,3296.1,3295.3,0.00368766]
[1762529087600,3.2078,3295.6,3295.3,0.00368766]
[1762529087803,0.822948,3296.0,3295.6,0.49193]
[1762529088203,0.49193,3295.7,3295.6,0.49193]
[1762529088394,0.492,3295.2,3295.1,0.004548]
[1762529088600,4.5182,3295.2,3295.1,0.004548]
[1762529088800,0.49213,3294.3,3294.2,3.2078]
[1762529089196,3.2078,3294.6,3294.2,3.2078]
[1762529089501,0.49212,3294.5,3294.4,0.49212]
[1762529089695,3.2078,3294.6,3294.3,0.49212]
[1762529089895,0.49213,3294.3,3294.2,3.703744]
[1762529090096,0.49213,3294.3,3294.2,0.003804]
[1762529090296,3.2078,3294.6,3294.2,0.003804]
[1762529090503,3.2078,3294.6,3294.3,0.49213]
[1762529090698,3.6999,3294.6,3294.5,0.4921]
[1762529090899,3.2078,3294.6,3294.5,0.4921]
[1762529091102,3.2078,3294.6,3294.2,0.003804]
[1762529091308,0.49213,3294.3,3294.2,0.003804]
[1762529092700,0.49216,3294.1,3294.0,0.004548]
[1762529092898,0.49234,3293.0,3292.9,0.49234]
[1762529093099,0.49231,3293.2,3293.0,0.49232]
[1762529093403,3.2078,3293.4,3292.8,3.2078]
[1762529093907,0.49228,3293.3,3292.8,3.21600086]
[1762529094105,3.21579635,3293.4,3292.8,3.21600086]
[1762529094298,0.49228,3293.3,3293.2,0.49228]
[1762529094701,0.00799635,3293.4,3293.2,0.49228]
[1762529095095,0.00799635,3293.4,3292.8,3.21600086]
[1762529095300,0.49231,3293.2,3292.8,3.21600086]
[1762529095506,0.50026635,3293.4,3293.2,0.49229]
[1762529095697,0.00799635,3293.4,3293.2,0.49229]
[1762529095894,0.00799635,3293.4,3293.2,11.70009]
[1762529096094,0.49216,3294.1,3294.0,0.49216]
[1762529096300,3.2078,3294.3,3294.1,0.49215]
[1762529096900,0.8184,3295.2,3294.1,3.2078]
[1762529096901,0.49212,3294.4,3294.1,3.2078]
[1762529097101,0.49560897,3294.4,3294.1,3.2078]
[1762529097295,0.00348897,3294.4,3294.2,0.49215]
[1762529097699,0.00348897,3294.4,3294.3,0.49213]
[1762529098610,3.21128897,3294.4,3293.6,3.2078]
[1762529098907,0.49221,3293.9,3293.8,0.4922]
[1762529099094,4.02968897,3294.4,3293.7,0.49222]
[1762529099295,4.02968897,3294.4,3293.6,3.2078]
[1762529099595,0.49221,3293.9,3293.8,0.49221]
[1762529099903,3.2078,3293.9,3293.1,3.2078]
[1762529100497,0.49228,3293.4,3293.3,0.49227]
[1762529100698,0.49229,3293.3,3293.2,0.4923]
[1762529101001,3.2078,3293.5,3293.1,3.2078]
[1762529101609,3.2078,3294.3,3294.2,0.49215]
[1762529101804,3.2078,3294.3,3293.2,3.2078]
[1762529102002,0.49226,3293.5,3293.2,3.2078]
[1762529102204,3.2078,3293.9,3293.8,0.49221]
[1762529102410,0.49221,3293.8,3293.2,3.2078]
[1762529102706,0.49228,3293.3,3293.2,3.2078]
[1762529102902,0.49233,3293.1,3292.8,0.00820086]
[1762529103109,0.49234,3292.9,3292.8,0.50056086]
[1762529103309,0.49233,3293.0,3292.9,0.49233]
[1762529103609,3.70005,3293.5,3293.3,0.49227]
[1762529103911,3.2078,3293.5,3293.2,0.49228]
[1762529104106,3.2078,3293.9,3293.5,0.49224]
[1762529104411,3.2078,3293.9,3292.8,3.21600086]
[1762529104412,0.49224,3293.7,3293.6,0.49224]
[1762529104606,3.2078,3293.9,3293.2,3.2078]
[1762529104811,0.00348897,3294.4,3294.3,0.49213]
[1762529105512,0.00348897,3294.4,3293.7,3.2078]
[1762529105711,0.00348897,3294.4,3294.3,0.49213]
[1762529106011,3.2078,3295.3,3294.1,3.2078]
[1762529106218,3.2078,3295.3,3294.7,3.2078]
[1762529106407,3.2078,3295.3,3295.0,0.49202]
[1762529106606,0.49207,3294.7,3294.6,3.2078]
[1762529106805,0.49218,3294.1,3293.9,3.2078]
[1762529107113,3.2078,3294.4,3294.3,0.00455518]
[1762529107406,1.08610591,3296.6,3296.2,0.49185]
[1762529107611,2.94189908,3297.6,3296.4,3.2078]
[1762529107612,0.7802,3297.6,3296.4,3.2078]
[1762529107806,0.4918,3296.6,3296.4,3.2078]
[1762529108007,0.49186,3296.2,3296.0,3.69967]
[1762529108308,0.00455518,3296.4,3296.3,0.49183]
[1762529108506,0.49166,3297.5,3296.0,3.21139924]
[1762529108701,0.49165,3297.6,3297.4,3.2078]
[1762529108910,0.6858619,3298.1,3297.0,3.2078]
[1762529109106,3.2078,3298.2,3297.4,3.2078]
[1762529109311,0.49164,3297.6,3297.4,3.2078]
[1762529109506,3.2078,3298.2,3296.9,0.49174]
[1762529109507,0.4917,3297.2,3296.9,0.49174]
[1762529109713,0.49173,3297.0,3296.8,3.2078]
[1762529109901,0.49172,3297.1,3296.8,3.2078]
[1762529110102,0.49176,3296.8,3296.7,0.00455518]
[1762529110809,0.49186,3296.1,3296.0,0.00359924]
[1762529111007,0.49193,3295.7,3295.5,3.2078]
[1762529111208,3.2078,3296.4,3295.6,0.49193]
[1762529111515,0.7802,3296.7,3295.9,3.2078]
[1762529112014,0.7802,3296.7,3296.0,0.00455518]
[1762529112015,0.49186,3296.2,3296.0,0.00455518]
[1762529112315,0.49186,3296.2,3293.9,0.24707512]
[1762529112316,0.49194,3295.6,3295.5,3.2078]
[1762529112516,0.00455518,3296.6,3295.5,3.2078]
[1762529112712,0.00455518,3296.6,3296.3,0.49183]
[1762529112911,0.00455518,3296.6,3296.4,0.49181]
[1762529113118,10.4042,3298.5,3297.0,0.49172]
[1762529113119,3.2078,3297.8,3297.0,0.49172]
[1762529113318,3.2078,3298.2,3297.1,3.2078]
[1762529113518,0.49166,3297.5,3297.1,3.2078]
[1762529113719,0.49163,3297.7,3297.1,3.2078]
[1762529113920,3.2078,3298.2,3297.1,3.2078]
[1762529114122,0.49153,3298.4,3298.0,0.49158]
[1762529114317,0.49153,3298.4,3297.0,0.00255209]
[1762529114318,0.00454787,3298.5,3297.9,3.21234787]
[1762529114518,0.49158,3298.0,3297.9,0.00454787]
[1762529114921,0.49164,3297.6,3297.5,3.2078]
[1762529115118,0.49544132,3297.6,3297.5,3.2078]
[1762529115319,0.78474787,3298.5,3297.5,11.2078]
[1762529115612,10.693,3300.2,3298.4,0.49151]
[1762529115613,3.2078,3299.6,3298.4,0.49151]
[1762529115813,0.4915,3298.6,3298.4,0.49151]
[1762529116022,3.2078,3299.6,3298.3,3.2078]
[1762529116219,3.2078,3299.6,3298.6,3.2078]
[1762529116419,0.49423374,3299.4,3299.2,0.49139]
[1762529116620,0.49141,3299.2,3299.0,0.49142]
[1762529116815,0.00454787,3299.3,3299.1,0.49141]
[1762529117624,0.00454787,3299.3,3299.1,0.49142]
[1762529118021,0.00454787,3299.3,3299.1,8.49142]
[1762529118217,0.49119,3300.7,3300.2,0.49125]
[1762529118524,0.49126,3300.2,3299.9,0.49129]
[1762529118821,0.49126,3300.2,3299.7,3.2078]
[1762529118822,0.4913,3299.9,3299.7,3.2078]
[1762529119016,3.2078,3300.6,3299.7,3.2078]
[1762529119017,0.49126,3300.2,3299.7,3.2078]
[1762529119228,0.00305538,3300.2,3300.1,3.69907]
[1762529119419,0.49111,3301.2,3300.3,0.846]
[1762529119627,0.49111,3301.2,3301.1,3.2078]
[1762529119812,0.49114,3301.0,3300.5,3.2078]
[1762529120015,3.2078,3302.3,3301.2,0.4911]
[1762529120319,0.7802,3303.0,3301.8,3.2078]
[1762529120320,0.00382111,3302.1,3301.8,3.2078]
[1762529120626,0.49107,3301.5,3301.3,0.00454787]
[1762529120814,0.49122,3300.4,3300.3,3.2078]
[1762529121017,3.2078,3301.0,3300.3,3.2078]
[1762529121221,3.2078,3301.9,3300.7,3.2078]
[1762529121426,0.49116,3300.9,3300.7,3.2078]
[1762529121619,3.2078,3301.4,3300.3,3.2078]
[1762529121929,0.49117,3300.8,3300.6,3.2078]
[1762529122625,0.49119,3300.6,3300.5,0.00454787]
[1762529122823,0.49131,3299.8,3299.7,0.00381217]
[1762529123026,0.7802,3300.3,3299.7,0.00381217]
[1762529123218,0.49121,3300.5,3300.2,3.2078]
[1762529123419,3.2078,3301.1,3300.2,3.2078]
[1762529123625,0.7802,3301.2,3300.6,3.2078]
[1762529123826,0.78474787,3301.2,3300.6,3.21234787]
[1762529124025,0.49117,3300.8,3300.6,3.21234787]
[1762529124224,0.78474787,3301.2,3300.6,3.21234787]
[1762529124525,0.00454787,3301.2,3300.6,3.21234787]
[1762529124831,0.49113,3301.1,3300.8,0.49116]
[1762529125031,0.49117,3300.8,3300.6,3.21234787]
[1762529125230,0.00454787,3301.2,3300.6,3.21234787]
[1762529125428,0.00454787,3301.2,3301.0,3.2078]
[1762529125639,0.00454787,3301.2,3301.0,3.69893]
[1762529125925,0.49566787,3301.2,3301.0,3.2078]
[1762529126329,0.49118,3300.7,3300.6,0.00454787]
[1762529126527,0.00454787,3301.2,3300.6,0.00454787]
[1762529126728,0.00454787,3301.2,3301.1,3.2078]
[1762529128234,0.00454787,3301.2,3301.1,3.69892]
[1762529128935,0.00454787,3301.2,3301.1,3.2078]
[1762529130029,0.49117,3300.8,3300.7,3.2078]
[1762529130233,0.00454787,3301.2,3301.0,0.49112]
[1762529130435,0.49565787,3301.2,3301.1,3.2078]
[1762529130823,1.30635787,3301.2,3301.1,3.2078]
[1762529131030,0.49565787,3301.2,3301.1,3.2078]
[1762529131634,0.00454787,3301.2,3301.1,3.2078]
[1762529131835,0.00454787,3301.2,3301.1,3.69892]
[1762529133134,0.49564787,3301.2,3301.1,3.2078]
[1762529133639,0.49114,3301.0,3300.7,3.69897]
[1762529133935,0.49116,3300.8,3300.7,3.2078]
[1762529134333,0.00454787,3301.2,3300.7,3.2078]
[1762529134634,0.00454787,3301.2,3300.7,3.69898]
[1762529134937,0.00454787,3301.2,3300.9,3.69894]
[1762529135239,0.00454787,3301.2,3300.9,3.2078]
[1762529135440,0.49114,3301.0,3300.9,3.2078]
[1762529135737,0.00454787,3301.2,3300.6,0.00454787]
[1762529135738,0.49118,3300.7,3300.6,0.00454787]
[1762529136535,3.2078,3301.1,3300.6,0.49574787]
[1762529136839,0.49118,3300.7,3300.6,0.00454787]
[1762529137741,0.00454787,3301.2,3300.6,0.00454787]
[1762529138036,0.00454787,3301.2,3300.9,3.2078]
[1762529138239,0.00454787,3301.2,3301.0,0.49114]
[1762529138441,0.49112,3301.1,3301.0,0.49114]
[1762529138633,0.00454787,3301.2,3301.1,0.49112]
[1762529138834,0.49565787,3301.2,3301.1,0.49112]
[1762529139342,0.00454787,3301.2,3301.1,0.49112]
[1762529139534,0.00454787,3301.2,3300.9,3.69894]
[1762529139839,0.49114,3301.0,3300.9,3.2078]
[1762529140235,0.00454787,3301.2,3300.9,3.2078]
[1762529140436,0.49114,3301.0,3300.9,3.2078]
[1762529140741,0.49118,3300.7,3300.6,0.00454787]
[1762529142335,0.00454787,3301.2,3300.6,0.00454787]
[1762529142534,0.00454787,3301.2,3300.6,0.49573787]
[1762529142744,0.00454787,3301.2,3300.7,0.49118]
[1762529142745,0.49118,3300.8,3300.7,0.49118]
[1762529143139,0.49114,3301.1,3301.0,0.49113]
[1762529143348,0.49114,3301.1,3301.0,3.2078]
[1762529143649,0.00454787,3301.2,3301.1,0.49112]
[1762529143937,0.00454787,3301.2,3301.0,3.2078]
[1762529144246,0.00454787,3301.2,3301.1,0.49112]
[1762529144433,0.49112,3301.1,3301.0,3.69892]
[1762529144833,0.00454787,3301.2,3301.1,0.49112]
[1762529145846,0.00382111,3302.1,3302.0,0.49099]
[1762529146048,1.07320779,3303.3,3302.4,0.49093]
[1762529146240,0.49087,3302.8,3302.3,3.2078]
[1762529146547,0.49084,3303.0,3302.8,0.49087]
[1762529146753,0.49082,3303.2,3303.0,0.49084]
[1762529147045,1.07320779,3304.1,3303.9,0.4907]
[1762529147242,1.07320779,3304.2,3304.1,0.49068]
[1762529147434,0.49061,3304.6,3304.0,3.5369]
[1762529147639,0.27980023,3305.3,3304.4,3.2078]
[1762529147846,3.2078,3305.4,3304.5,0.49061]
[1762529148042,3.21113696,3305.4,3304.4,3.2078]
[1762529148344,3.2078,3304.5,3303.6,3.2078]
[1762529148543,0.8183,3304.8,3304.0,3.69849]
[1762529148743,0.49066,3304.2,3304.1,3.2078]
[1762529149141,3.2078,3305.2,3304.1,3.2078]
[1762529149642,0.49065,3304.3,3304.1,3.2078]
[1762529150745,0.49072,3303.8,3303.7,0.00454084]
[1762529151143,4.0261,3304.8,3303.7,0.00454084]
[1762529151336,4.0261,3304.8,3304.0,3.2078]
[1762529151541,0.49062,3304.5,3304.4,3.2078]
[1762529151745,4.0261,3304.8,3303.7,0.00454084]
[1762529151746,0.49066,3304.2,3304.0,3.69848]
[1762529151946,0.49066,3304.2,3304.0,3.2078]
[1762529152448,4.0261,3304.8,3304.0,3.2078]
[1762529152645,3.2078,3304.8,3304.0,3.2078]
[1762529152845,0.00296233,3305.3,3304.4,3.2078]
[1762529153149,0.00296233,3305.3,3303.7,0.00454084]
[1762529153150,0.00296233,3305.3,3305.2,3.2078]
[1762529153651,0.49053,3305.1,3305.0,3.2078]
[1762529153844,0.49051,3305.2,3305.0,3.2078]
[1762529154149,0.00296233,3305.3,3305.2,0.49051]
[1762529154346,0.49051,3305.2,3305.0,3.2078]
[1762529154940,0.49051,3305.2,3305.0,3.69833]
[1762529155141,0.00296233,3305.3,3305.1,0.49052]
[1762529155344,3.2078,3307.0,3305.0,3.2078]
[1762529155650,0.49034,3306.4,3306.2,3.2078]
[1762529155949,3.2078,3307.0,3306.2,3.2078]
[1762529156150,0.49026,3306.9,3306.8,3.2078]
[1762529156353,3.2078,3307.5,3306.8,3.2078]
[1762529156550,3.69805,3307.0,3306.8,0.00757195]
[1762529156945,0.00233262,3307.5,3306.8,0.00757195]
[1762529157547,0.49025,3307.0,3306.8,0.00757195]
[1762529158655,3.69804,3307.1,3306.8,0.00757195]
[1762529158953,3.21013262,3307.5,3306.8,0.00757195]
[1762529159252,0.00233262,3307.5,3307.3,3.2078]
[1762529159450,0.00233262,3307.5,3307.2,3.2078]
[1762529159644,0.49019,3307.4,3307.2,3.2078]
[1762529160052,0.00233262,3307.5,3307.2,3.2078]
[1762529160355,0.49026,3306.9,3306.8,3.21537195]
[1762529160551,0.00233262,3307.5,3306.8,3.21537195]
[1762529160753,0.00233262,3307.5,3307.3,3.69799]
[1762529161059,0.49023,3307.1,3306.9,3.2078]
[1762529161353,0.00233262,3307.5,3307.3,0.49019]
[1762529161546,0.00233262,3307.5,3306.8,0.00757195]
[1762529161547,3.2078,3309.2,3308.5,0.49001]
[1762529161750,0.48995,3309.0,3308.5,3.70234301]
[1762529161946,3.2078,3309.2,3308.5,3.21233301]
[1762529162145,0.48999,3308.7,3308.5,0.00453301]
[1762529162351,0.48999,3308.7,3307.7,3.2078]
[1762529162352,0.49012,3307.8,3307.7,3.2078]
[1762529162547,0.24564079,3310.1,3307.7,3.2078]
[1762529162548,3.2078,3309.2,3308.5,0.49001]
[1762529162857,3.989,3308.8,3307.6,3.2078]
[1762529163055,3.989,3308.8,3307.2,0.7936]
[1762529163056,0.7812,3308.8,3307.8,3.2078]
[1762529163353,0.00450694,3308.6,3308.5,0.49002]
[1762529163658,0.00798106,3308.6,3308.5,3.2078]
[1762529164550,0.00798106,3308.6,3308.0,3.21233301]
[1762529165055,0.49007,3308.2,3308.0,3.21233301]
[1762529165256,0.49007,3308.2,3308.0,0.00453301]
[1762529165859,0.49007,3308.2,3308.0,3.21233301]
[1762529166054,0.00798106,3308.6,3308.1,0.49007]
[1762529166255,0.49007,3308.2,3308.0,3.21233301]
[1762529166558,0.00798106,3308.6,3308.0,3.70242301]
[1762529166753,0.49799106,3308.6,3308.4,3.2078]
[1762529167057,0.00798106,3308.6,3308.4,3.69782]
[1762529167350,3.2078,3310.2,3308.5,8.0]
[1762529167552,3.2078,3310.2,3309.5,3.69766]
[1762529167751,0.48982,3309.9,3308.8,0.8132]
[1762529167951,0.4899,3309.3,3309.1,3.2078]
[1762529168148,0.49240568,3309.3,3309.1,0.00336829]
[1762529168654,0.00250568,3309.3,3309.1,3.70108829]
[1762529169052,0.49240568,3309.3,3309.1,3.21116829]
[1762529169260,0.49240568,3309.3,3309.1,0.00336829]
[1762529169558,10.898,3311.7,3310.1,0.48977]
[1762529169559,3.69756,3310.3,3310.1,0.48977]
[1762529169745,3.69756,3310.3,3309.3,0.8107]
[1762529169746,0.48981,3310.0,3309.9,0.00453301]
[1762529170057,0.48979,3310.1,3309.9,0.00453301]
[1762529170655,0.49219534,3310.1,3309.9,0.00453301]
[1762529171156,0.48992,3309.2,3309.1,8.29e-06]
[1762529171453,0.7812,3309.3,3308.2,3.18383453]
[1762529171657,0.7812,3309.3,3308.3,3.2078]
[1762529171961,0.4901,3308.0,3307.9,3.2078]
[1762529172158,0.004533,3308.3,3307.9,3.2078]
[1762529172366,0.004533,3308.3,3308.1,0.49009]
[1762529172863,0.004533,3308.3,3308.1,8.49009]
[1762529173061,3.2078,3309.5,3308.4,0.8132]
[1762529173264,0.48985,3309.7,3309.5,0.48987]
[1762529173560,0.48982,3309.9,3309.7,0.48984]
[1762529173760,0.00240534,3310.1,3309.4,3.2078]
[1762529173960,0.48983,3309.8,3309.7,3.2078]
[1762529174160,0.48983,3309.8,3308.4,0.8132]
[1762529174161,0.48983,3309.8,3309.4,0.00453301]
[1762529174356,0.48987,3309.6,3309.4,0.00453301]
[1762529174763,0.48987,3309.5,3309.4,0.00453301]
[1762529174958,0.00240534,3310.1,3309.4,0.00453301]
[1762529175258,0.00240534,3310.1,3309.8,3.2078]
[1762529175462,3.2078,3311.4,3309.8,3.2078]
[1762529175667,3.2078,3311.8,3310.8,3.2078]
[1762529175871,0.48963,3311.2,3311.0,0.48964]
[1762529176155,3.2078,3311.8,3311.0,0.00453301]
[1762529176358,3.2078,3311.8,3311.4,0.48958]
[1762529176359,0.48955,3311.7,3311.4,0.48958]
[1762529176567,0.49310607,3311.7,3311.5,0.48957]
[1762529176766,0.48957,3311.6,3311.4,0.00272599]
[1762529177563,0.00355607,3311.7,3311.4,0.00272599]
[1762529177766,0.48956,3311.6,3311.4,0.00272599]
[1762529177963,0.00355607,3311.7,3311.4,0.49230599]
[1762529178163,0.48956,3311.6,3311.4,0.00272599]
[1762529178352,0.48956,3311.6,3311.4,0.49230599]
[1762529178553,0.00355607,3311.7,3311.5,0.48957]
[1762529178754,0.00355607,3311.7,3311.6,3.2078]
[1762529179163,0.48957,3311.6,3311.4,0.00272599]
[1762529179462,3.21135607,3311.7,3311.4,0.49231599]
[1762529179664,0.00355607,3311.7,3311.4,0.00272599]
[1762529179863,0.48957,3311.6,3311.4,0.49231599]
[1762529180062,0.48956,3311.6,3311.4,0.00272599]
[1762529180256,8.0,3311.5,3311.4,0.00272599]
[1762529180463,0.48956,3311.6,3311.4,0.00272599]
[1762529180766,0.48956,3311.6,3309.3,1.05812936]
[1762529180767,0.7812,3311.1,3309.9,0.48981]
[1762529181062,0.48979,3310.1,3309.9,3.69761]
[1762529181270,0.7812,3311.1,3309.3,0.8132]
[1762529181271,0.48986,3309.7,3309.5,3.2078]
[1762529181763,0.00453301,3309.9,3309.5,3.70127224]
[1762529181966,0.00453301,3309.9,3309.7,0.48984]
[1762529182166,0.00453301,3309.9,3309.5,3.21141224]
[1762529182365,0.00453301,3309.9,3309.6,0.48985]
[1762529182566,0.00453301,3309.9,3309.5,0.00361224]
[1762529182567,0.48986,3309.6,3309.5,0.00361224]
[1762529182758,0.48983,3309.8,3309.5,3.21141224]
[1762529182964,0.00453301,3309.9,3309.6,0.48985]
[1762529183167,0.00453301,3309.9,3309.7,0.48984]
[1762529183365,0.00453301,3309.9,3309.5,3.21141224]
[1762529183575,0.48985,3309.7,3309.5,0.00361224]
[1762529183963,0.00453301,3309.9,3309.7,0.48984]
[1762529185173,0.00453301,3309.9,3309.8,8.0]
[1762529185360,0.48973,3310.5,3309.8,8.0]
[1762529185564,0.48973,3310.5,3310.2,0.48977]
[1762529185760,0.48975,3310.4,3310.1,3.2078]
[1762529185963,3.2078,3310.8,3309.5,3.21141224]
[1762529186271,0.48978,3310.2,3309.5,3.21141224]
[1762529186571,3.2078,3310.8,3309.9,3.2078]
[1762529186781,3.2078,3310.8,3310.4,3.69753]
[1762529186965,3.2078,3310.8,3310.6,0.4897]
[1762529187170,3.2078,3310.8,3310.4,3.2078]
[1762529187171,3.21135607,3311.7,3311.1,0.48963]
[1762529187466,3.10756547,3312.1,3312.0,0.4895]
[1762529187768,3.2078,3313.2,3312.0,44.4923]
[1762529187977,0.7812,3313.8,3312.0,41.2845]
[1762529188173,1.07320779,3315.1,3313.2,0.48931]
[1762529188467,0.48927,3313.6,3313.5,0.00453301]
[1762529188859,0.8212,3313.8,3312.5,0.48943]
[1762529189074,0.00450976,3313.9,3313.3,0.48931]
[1762529189265,0.00450976,3313.9,3312.0,41.2845]
[1762529189460,0.8212,3313.8,3312.0,41.2845]
[1762529189670,0.48936,3313.0,3312.0,41.2845]
[1762529189873,0.48939,3312.8,3312.6,0.00452605]
[1762529190066,0.48939,3312.8,3312.0,41.28791539]
[1762529190067,0.4894,3312.8,3312.7,3.2078]
[1762529190275,3.2078,3313.7,3312.7,3.2078]
[1762529190772,3.2078,3313.7,3312.0,41.28791539]
[1762529190773,0.48949,3312.1,3312.0,0.00341539]
[1762529191274,3.2078,3312.7,3312.0,0.00341539]
[1762529191570,0.8212,3312.9,3312.0,0.00341539]
[1762529191571,1.31058,3312.9,3312.3,0.48945]
[1762529191778,0.48939,3312.8,3312.6,3.69721]
[1762529191975,0.48939,3312.8,3312.6,3.2078]
[1762529192577,3.2078,3313.3,3312.6,3.2078]
[1762529192971,3.69712,3313.3,3312.6,3.2078]
[1762529193179,4.029,3313.8,3313.0,3.2078]
[1762529193379,4.029,3313.8,3313.1,0.48934]
[1762529193672,0.00285307,3314.4,3313.7,3.69705]
[1762529193673,0.48919,3314.2,3313.7,3.69705]
[1762529193874,0.48922,3314.0,3313.7,3.69705]
[1762529194070,0.00285307,3314.4,3313.7,3.69705]
[1762529194270,0.00285307,3314.4,3314.3,0.48917]
[1762529194471,0.00285307,3314.4,3314.3,3.69697]
[1762529195677,0.00285307,3314.4,3314.3,3.2078]
[1762529195978,0.00285307,3314.4,3314.3,11.2078]
[1762529196182,0.00452605,3314.7,3314.6,0.48913]
[1762529196381,0.00452605,3314.7,3314.3,3.2078]
[1762529196675,0.00452605,3314.7,3314.5,0.48913]
[1762529196882,0.00452605,3314.7,3314.3,3.2078]
[1762529197085,0.48914,3314.5,3314.3,3.21062384]
[1762529197480,0.00754521,3314.7,3314.3,3.69978384]
[1762529197780,0.48914,3314.5,3314.3,3.21062384]
[1762529197975,0.00754521,3314.7,3314.5,0.48913]
[1762529199178,0.48901,3315.4,3315.1,0.48905]
[1762529199372,0.48901,3315.4,3314.5,6.0336]
[1762529199373,3.2078,3316.2,3315.2,3.2078]
[1762529199573,0.8212,3316.5,3315.6,0.48896]
[1762529199783,3.2078,3316.6,3315.9,0.48893]
[1762529199977,3.2078,3316.6,3315.7,3.2078]
[1762529200180,3.2078,3316.6,3316.3,0.48887]
[1762529200181,3.21049961,3316.6,3316.3,0.48887]
[1762529200380,0.00269961,3316.6,3316.4,0.48885]
[1762529200583,0.00269961,3316.6,3316.1,3.2078]
[1762529200980,0.00269961,3316.6,3316.4,0.48885]
[1762529201187,0.00269961,3316.6,3316.5,3.9856]
[1762529201382,0.10634499,3317.8,3316.5,3.9856]
[1762529201383,3.2078,3317.7,3317.5,0.48868]
[1762529201580,0.10634499,3317.8,3317.3,0.48872]
[1762529201985,0.10634499,3317.8,3317.6,0.48868]
[1762529202182,0.48868,3317.7,3317.5,3.2078]
[1762529202385,0.48868,3317.7,3317.6,0.00368189]
[1762529202682,0.10878916,3317.8,3317.1,3.2078]
[1762529202683,0.48874,3317.2,3317.1,3.2078]
[1762529202890,0.48878,3317.0,3316.5,3.2078]
[1762529203081,3.2078,3317.5,3316.5,3.9445]
[1762529203387,0.10878916,3317.8,3317.1,0.48875]
[1762529203577,3.2078,3317.7,3317.1,0.00257065]
[1762529203778,3.2078,3317.2,3317.1,0.00257065]
[1762529204285,0.48874,3317.3,3317.1,0.00257065]
[1762529205180,3.2078,3317.7,3317.1,0.00257065]
[1762529205384,0.10878916,3317.8,3317.3,3.2078]
[1762529205579,0.10878916,3317.8,3317.3,3.69651]
[1762529205781,0.48873,3317.3,3317.1,0.00257065]
[1762529206288,11.69653,3317.3,3317.1,0.00257065]
[1762529206489,0.48882,3316.6,3316.5,3.2078]
[1762529206684,3.2078,3317.3,3316.5,3.2078]
[1762529206884,0.48881,3316.7,3316.5,3.2078]
[1762529207077,3.2078,3317.3,3316.5,3.2078]
[1762529207280,3.2078,3317.3,3314.6,10.87]
[1762529207281,0.48888,3316.2,3316.1,3.2078]
[1762529207477,0.48888,3316.2,3316.1,3.2112846]
[1762529208085,0.48885,3316.4,3316.1,3.7001846]
[1762529208287,3.2078,3317.3,3316.5,0.48883]
[1762529208492,3.2078,3317.3,3316.7,3.2078]
[1762529208690,0.10878916,3317.8,3317.2,3.2078]
[1762529208985,0.48872,3317.4,3317.2,3.2078]
[1762529209384,0.4888,3316.8,3316.7,3.2078]
[1762529209587,3.2078,3317.5,3316.7,3.2078]
[1762529209784,0.48874,3317.2,3317.1,3.2078]
[1762529209990,3.2078,3317.5,3317.1,3.2078]
[1762529210185,0.48872,3317.3,3317.1,3.2078]
[1762529210484,0.7719,3317.4,3316.6,3.2078]
[1762529210485,0.48881,3316.7,3316.6,3.2078]
[1762529210695,0.48893,3315.9,3315.8,0.00452605]
[1762529211081,0.48903,3315.3,3314.9,3.2078]
[1762529211388,3.2078,3316.0,3314.9,3.2078]
[1762529211593,0.48896,3315.7,3315.1,0.48904]
[1762529211792,0.48896,3315.7,3314.9,3.21128324]
[1762529211991,0.00271526,3316.0,3315.4,3.2078]
[1762529212187,0.00271526,3316.0,3315.5,3.69678]
[1762529212188,0.00452605,3315.6,3315.5,3.69678]
[1762529212588,0.00452605,3315.6,3315.5,3.2078]
[1762529212793,0.00452605,3315.6,3315.0,0.00452605]
[1762529213096,0.48903,3315.2,3315.0,0.00452605]
[1762529213585,8.48903,3315.2,3315.0,0.00452605]
[1762529213789,0.48903,3315.2,3315.0,0.00452605]
[1762529214194,8.48903,3315.2,3315.0,0.00452605]
[1762529214492,8.48903,3315.2,3311.2,1.53271897]
[1762529214493,0.48931,3313.3,3313.1,3.2078]
[1762529214689,0.48931,3313.3,3311.6,0.23767363]
[1762529214690,3.2078,3313.7,3313.0,0.48935]
[1762529214993,0.48927,3313.6,3313.4,0.48929]
[1762529215292,0.48934,3313.1,3312.8,3.2078]
[1762529215495,0.00363433,3313.1,3312.9,0.74034772]
[1762529215688,0.00363433,3313.1,3312.9,1.22970772]
[1762529215887,0.49297433,3313.1,3312.9,0.00364772]
[1762529216293,0.48948,3312.2,3311.6,0.48955]
[1762529216488,0.00363433,3313.1,3311.5,3.2078]
[1762529216489,3.2078,3312.4,3311.7,0.48954]
[1762529216799,0.00363433,3313.1,3312.0,0.8162]
[1762529216989,0.48942,3312.6,3312.3,3.2078]
[1762529217193,0.48937,3312.9,3312.3,3.70095931]
[1762529217495,0.00363433,3313.1,3312.3,0.00370931]
[1762529217496,0.48943,3312.5,3312.3,0.00370931]